Cogmind - Beta 14 @@@ ROGUE MODE // 2024.09.01 @ 00:05:41 Player: Helstads_dog Result: Destroyed by 2K-Q87(R) with Subdweller Laser Performance ------------- Evolutions (0) 0 Regions Visited (3) 600 Robots Destroyed (26) 130 Value Destroyed (573) 573 Prototype IDs (2) 40 Alien Tech Used (0) 0 Bonus (7) 7 TOTAL SCORE: 1350 Bonus ------- Follower Combat Kills 7 Cogmind --------- Core Integrity 0/250 Matter 6/300 Energy 74/200 System Corruption 0% Temperature Cool (6) Movement Treading (170) Location -10/Subcaves Parts ------- > --- POWER (1) -------- Subdweller Power Source > --- PROPULSION (2) --- Armored Treads Armored Treads > --- UTILITY (2) ------ Large Storage Unit Hardlight Generator > --- WEAPON (2) ------- Autogun Rocket Launcher > --- INVENTORY (15) --- Light Treads Heavy Assault Rifle Heavy Assault Rifle Autogun Autogun Light Cannon Mining Claw Peak State ------------ > --- POWER ------------ Subdweller Power Source > --- PROPULSION ------- Armored Treads Armored Treads > --- UTILITY ---------- Large Storage Unit Hardlight Generator > --- WEAPON ----------- Autogun Rocket Launcher > --- INVENTORY -------- Light Treads Heavy Assault Rifle Heavy Assault Rifle Autogun Autogun Light Cannon Mining Claw [Rating: 17] Favorites ----------- Power Ion Engine Engine Ion Engine Propulsion Light Treads Treads Light Treads Leg Aluminum Leg Utility Large Storage Unit Device Hardlight Generator Storage Large Storage Unit Protection Hardened Medium Armor Plating Weapon Assault Rifle Ballistic Gun Assault Rifle Launcher Rocket Launcher Special Weapon Mining Laser Slashing Weapon Mining Claw Build | -11 -10 -10 -10 ------- Run | Yrd Mat Min Sub Slots Evolved . | . . . . Power . | . . . . Propulsion . | . . . . Utility . | . . . . Weapon . | . . . . Parts Attached 31 | 6 10 3 12 Power 4 | 1 1 . 2 Engine 4 | 1 1 . 2 Core . | . . . . Reactor . | . . . . Propulsion 6 | 2 2 . 2 Treads 4 | . 2 . 2 Leg 2 | 2 . . . Wheel . | . . . . Hover . | . . . . Flight . | . . . . Utility 5 | 1 2 1 1 Device 1 | . . . 1 Storage 2 | 1 1 . . Processor . | . . . . Hackware . | . . . . Protection 2 | . 1 1 . Artifact . | . . . . Weapon 16 | 2 5 2 7 Energy Gun . | . . . . Energy Cannon . | . . . . Ballistic Gun 10 | 2 3 1 4 Ballistic Cannon . | . . . . Launcher 3 | . 2 . 1 Special Weapon 1 | . . 1 . Impact Weapon . | . . . . Slashing Weapon 2 | . . . 2 Piercing Weapon . | . . . . Special Melee Weapon . | . . . . Unidentified Prototypes . | . . . . Parts Lost 7 | . . . 7 Power 2 | . . . 2 Propulsion 2 | . . . 2 Utility 1 | . . . 1 Weapon 2 | . . . 2 Highest Loss Streak 4 | . . . 4 To Critical Strikes . | . . . . Average Slot Usage (%) 99 | . 98 100 98 Engine 13 | . 14 14 12 Treads 25 | . 21 28 28 Leg 2 | . 6 . . Storage 14 | . 14 14 14 Protection 13 | . 12 14 12 Ballistic Gun 27 | . 27 28 25 Peak Build Rating 17 | 6 10 12 17 Average Rating 10 | 4 8 11 12 On Entrance 7 | . 6 10 12 Naked Turns . | . . . . Heaviest Build 39 | 11 34 38 39 Greatest Support 40 | 20 40 40 40 Greatest Overweight (x) . | . . . . Average Overweight (x) . | . . . . Largest Inventory Capacity 15 | 8 15 15 15 Average Capacity 14 | 7 13 15 15 Most Carried 15 | 4 15 15 15 Average Carried 12 | 2 10 14 14 Final Capacity 15 | 8 15 15 15 Final Carried 15 | 4 15 15 7 Class Distribution -------------------- 100% | Mutant Dominant Class ---------------- Mutant | -10/Materials Mutant | -10/Mines Mutant | -10/Subcaves Resources | -11 -10 -10 -10 ----------- Run | Yrd Mat Min Sub Matter Collected 871 | 260 448 77 86 Remotely . | . . . . Salvage Created 789 | . 529 67 193 Parts 59 | . 35 13 11 Haulers Intercepted 2 | . 2 . . Recyclers Shooed . | . . . . Parts Field Recycled . | . . . . Retrieved Matter . | . . . . Parts Self-Destructed 11 | . . . 11 Prevented . | . . . . Kills | -11 -10 -10 -10 ------- Run | Yrd Mat Min Sub Combat Hostiles Destroyed 19 | . 10 5 4 Guns 19 | . 10 5 4 Classes Destroyed 7 | . 5 1 1 Worker 1 | . . 1 . Hauler 2 | . 2 . . Operator 1 | . 1 . . Watcher 3 | . 3 . . Swarmer 8 | . 3 5 . Grunt 7 | . 7 . . Subdweller 4 | . . . 4 Best Kill Streak 3 | . 3 3 2 Combat Bots Only 3 | . 2 3 2 Max Kills in Single Turn 1 | . 1 1 1 Gunslinging . | . . . . Exploded . | . . . . Melee . | . . . . Uniques/NPCs Destroyed . | . . . . Combat | -11 -10 -10 -10 -------- Run | Yrd Mat Min Sub Hostile Shots Fired 120 | . 35 10 75 Missed 26 | . 8 2 16 Damage Taken 1708 | . 308 63 1337 Core 253 | . 60 7 186 Absorbed by Shields 28 | . . . 28 Core Remaining (%) 100 | 100 . . . Volleys Fired 98 | . 51 6 41 Largest 2 | . 2 2 2 Hottest 56 | . 43 43 56 Shots Fired 194 | . 100 12 82 Gun 191 | . 98 12 81 Cannon . | . . . . Launcher 3 | . 2 . 1 Special . | . . . . Kinetic 191 | . 98 12 81 Thermal . | . . . . Explosive 3 | . 2 . 1 Electromagnetic . | . . . . Robot Hit Streak 29 | . 6 5 29 Robot Miss Streak 4 | . 4 1 2 Penetration Max . | . . . . Secondary Targets 2 | . 1 . 1 Max Gunslinging Chain 1 | . 1 . 1 Shots Hit Robots 130 | . 54 6 70 Core Hits 39 | . 26 5 8 Critical Kills 1 | . . 1 . Critical Parts Destroyed 1 | . 1 . . Critical Strikes 2 | . 1 1 . Destroy 2 | . 1 1 . Melee Attacks 5 | . . . 5 Impact . | . . . . Slashing 5 | . . . 5 Piercing . | . . . . Sneak Attacks . | . . . . Combat Hostiles . | . . . . Follow-up Attacks . | . . . . Damage Inflicted 1239 | . 739 98 402 Guns 1172 | . 739 97 336 Cannons . | . . . . Explosions 66 | . . . 66 Melee . | . . . . Ramming 1 | . . 1 . Kinetic 1172 | . 739 97 336 Thermal . | . . . . Explosive 66 | . . . 66 Electromagnetic . | . . . . Impact . | . . . . Slashing . | . . . . Piercing . | . . . . Highest Corruption . | . . . . Average Corruption . | . . . . Corruption Purged . | . . . . Corruption Blocked . | . . . . Overload Shots . | . . . . Overflow Damage . | . . . . Projectiles . | . . . . Explosions . | . . . . Melee . | . . . . Knockbacks . | . . . . Impact . | . . . . Kinetic . | . . . . Secondary . | . . . . Self-Inflicted Damage 32 | . . . 32 Shots 1 | . . . 1 Rammed . | . . . . Targets Rammed 1 | . . 1 . Kicked . | . . . . Crushed 1 | . . 1 . Highest Temperature 43 | . 43 24 . Average Temperature 9 | . 9 11 . Received Heat Transfer 422 | . 138 . 284 Siege Activations . | . . . . Robots Corrupted . | . . . . Combat Hostiles . | . . . . Parts Fried . | . . . . Impact Corruptions . | . . . . Robots Melted . | . . . . Combat Hostiles . | . . . . Parts Melted 2 | . . . 2 Heat Transferred . | . . . . Parts Sabotaged . | . . . . Parts Stolen . | . . . . Parts Stripped . | . . . . Power Chain Reactions . | . . . . Alert | -11 -10 -10 -10 ------- Run | Yrd Mat Min Sub Peak Influence 184 | . 184 89 . Initial 19 | . . 19 . Average 49 | . 60 37 . Maximum Alert Level . | . . . . Low Security (%) 100 | 100 100 100 . Level 1 . | . . . . Level 2 . | . . . . Level 3 . | . . . . Level 4 . | . . . . Level 5 . | . . . . High Security . | . . . . Max Security . | . . . . Squads Dispatched 2 | . 2 . . Investigation . | . . . . Extermination . | . . . . Reinforcement 2 | . 2 . . Assault . | . . . . Garrison . | . . . . Intercept . | . . . . Searches Triggered . | . . . . Construction Impeded . | . . . . Haulers Reinforced . | . . . . Active Scanning Responses . | . . . . Cargo Convoy Interrupts . | . . . . Stealth | -11 -10 -10 -10 --------- Run | Yrd Mat Min Sub Distress Signals 1 | . 1 . . Communications Jammed . | . . . . Distress Signals . | . . . . Times Spotted 30 | . 19 6 5 Peak Tracking Total 3 | . 3 3 2 Tactical Retreats 2 | . 1 1 . Traps | -11 -10 -10 -10 ------- Run | Yrd Mat Min Sub Traps Triggered 3 | . . . 3 Indirectly . | . . . . Trap Hack Attempts . | . . . . Triggered . | . . . . Disarmed . | . . . . Reprogrammed . | . . . . Reused . | . . . . Traps Extracted . | . . . . Installed . | . . . . Triggered . | . . . . Machines | -11 -10 -10 -10 ---------- Run | Yrd Mat Min Sub Machines Disabled . | . . . . Max in Single Turn . | . . . . Machines Repaired . | . . . . Machines Dismantled . | . . . . Machines Sabotaged . | . . . . Overloaded Fab Kills . | . . . . Hacking | -11 -10 -10 -10 --------- Run | Yrd Mat Min Sub Machines Accessed 6 | . 5 1 . Terminals 5 | . 5 . . Fabricators . | . . . . Repair Stations . | . . . . Recycling Units . | . . . . Scanalyzers . | . . . . Garrison Access . | . . . . Total Hacks 17 | . 16 1 . Successful 5 | . 4 1 . Failed 12 | . 12 . . Catastrophic 2 | . 2 . . Database Lockouts . | . . . . Manual 3 | . 3 . . Terminals 16 | . 16 . . Fabricators . | . . . . Repair Stations . | . . . . Recycling Units . | . . . . Scanalyzers . | . . . . Garrison Access . | . . . . Terminal Hacks 5 | . 4 1 . Prototype ID Bank 1 | . 1 . . Open Door 1 | . . 1 . Locate Traps 3 | . 3 . . Fabricator Hacks . | . . . . Repair Station Hacks . | . . . . Recycling Unit Hacks . | . . . . Scanalyzer . | . . . . Garrison Access Hacks . | . . . . Unauthorized Hacks . | . . . . Terminals . | . . . . Fabricators . | . . . . Repair Stations . | . . . . Recycling Units . | . . . . Scanalyzers . | . . . . Garrison Access . | . . . . Data Cores Recovered . | . . . . Used . | . . . . Hacking Detections 5 | . 5 . . Full Trace Events 1 | . 1 . . Feedback Events . | . . . . Feedback Blocked . | . . . . Robot Schematics Acquired . | . . . . Robots Built . | . . . . Authchips . | . . . . Time . | . . . . Total Robot Build Rating . | . . . . Part Schematics Acquired . | . . . . Parts Built . | . . . . Authchips . | . . . . Time . | . . . . Total Part Build Rating . | . . . . Parts Repaired . | . . . . Time . | . . . . Parts Recycled . | . . . . Recycled Matter . | . . . . Retrieved Matter . | . . . . Retrieved Components . | . . . . Parts Scanalyzed . | . . . . Part Schematics Acquired . | . . . . Parts Damaged . | . . . . Bothacking | -11 -10 -10 -10 ------------ Run | Yrd Mat Min Sub Used RIF Installer . | . . . . Robots Hacked . | . . . . Non-combat . | . . . . Combat . | . . . . Robot Hacks Applied . | . . . . Relay Couplers Released . | . . . . Fabnet Peak Effective % . | . . . . Robots Rewired . | . . . . Allies Hacked . | . . . . Hacks Repelled . | . . . . Allies | -11 -10 -10 -10 -------- Run | Yrd Mat Min Sub Total Allies 4 | . . 4 . Largest Group 3 | . . 3 2 Highest-Rated Group 63 | . . 63 32 Highest-Rated Ally 31 | . . 31 16 Total Orders 1 | . . . 1 GUARD 1 | . . . 1 Ally Attacks 12 | . . 6 6 Total Damage 71 | . . 24 47 Kills 1 | . . 1 . Allies Corrupted . | . . . . Allies Melted . | . . . . Intel | -11 -10 -10 -10 ------- Run | Yrd Mat Min Sub Robot Analysis Total . | . . . . Derelict Logs Recovered 3 | . . 2 1 Drone Launches . | . . . . Drone Recoveries . | . . . . Exploration | -11 -10 -10 -10 ------------- Run | Yrd Mat Min Sub Turns Passed 3116 | 52 1379 1130 555 Spaces Moved 1651 | 38 751 631 231 Core 9 | 9 . . . Treads 1423 | . 561 631 231 Legs 219 | 29 190 . . Wheels . | . . . . Hover . | . . . . Flight . | . . . . Fastest Speed 50 | 50 120 160 160 Average Speed 154 | 103 149 160 160 Slowest Speed 165 | 120 160 160 165 Overloaded Moves . | . . . . Propulsion Burnouts . | . . . . Robots Hopped . | . . . . Cave-ins Triggered . | . . . . Exploration Rate (%) 53 | 3 96 98 18 Regions Visited 3 Branch Regions 2 Pre-discovered Areas 1 | . . 1 . Known Exits Taken . | . . . . Unknown Exits Taken 3 | 1 1 1 . Scrap Searched 1 | . . 1 . Spaces Dug 19 | . 19 . . Terrain Destroyed 29 | . 19 . 10 Melee . | . . . . Projectile . | . . . . AOE 29 | . 19 . 10 Terrain Rammed . | . . . . Walls Destroyed . | . . . . Machines Disabled . | . . . . Actions | -11 -10 -10 -10 --------- Run | Yrd Mat Min Sub Total 2033 | 47 913 742 331 Wait 206 | . 78 89 39 Move 1648 | 37 750 630 231 Hop . | . . . . Pick Up 28 | 4 17 6 1 Fast Attach 8 | 6 1 1 . Attach 9 | . 1 . 8 Detach . | . . . . Swap 14 | . 8 2 4 Drop 16 | . 7 7 2 Fire 98 | . 51 6 41 Melee 5 | . . . 5 Ram . | . . . . Kick . | . . . . Crush 1 | . . 1 . Escape Stasis . | . . . . Rewire . | . . . . Trap . | . . . . Miscellaneous . | . . . . Route ------- -11/Scrapyard -10/Materials (discovered 4 exits: [*Mat x3] / *Min) -10/Mines (discovered 3 exits: [*Mat x2] / [*Sub]) -10/Subcaves History --------- Turn | Location | Event 2 | -11/Scrapyard | Met Revision 17 9 | -11/Scrapyard | Discovered new exit (range 14) 53 | -11/Scrapyard | Entered Materials 188 | -10/Materials | Discovered new exit (range 15) 313 | -10/Materials | Build established: Mutant 345 | -10/Materials | Discovered new exit (range 15) 523 | -10/Materials | Discovered new exit (range 11) 803 | -10/Materials | Discovered new exit (range 11) 1432 | -10/Materials | Entered Mines 1445 | -10/Mines | Met a Derelict who couldn't figure out how to use a Trap Extractor 1564 | -10/Mines | Learned location of Zion (-7) 1930 | -10/Mines | Discovered new exit (range 16) 2055 | -10/Mines | Assisted by bots powering up and referring to "LRC-V3" 2282 | -10/Mines | Learned Materials interactive machine intel 2296 | -10/Mines | Discovered new exit (range 5) 2299 | -10/Mines | Received a Mining Laser from a helpful Derelict 2552 | -10/Mines | Discovered new exit (range 6) 2562 | -10/Mines | Entered Subcaves 2562 | -10/Subcaves | Accompanied by 2 allies 2567 | -10/Subcaves | Learned 2 Materials zone layouts 3023 | -10/Subcaves | Core integrity fell below 50% 3058 | -10/Subcaves | Core integrity fell below 20% 3082 | -10/Subcaves | Lost 4 parts (1p1n1u1w) 3117 | -10/Subcaves | Destroyed by 2K-Q87(R) with Subdweller Laser Last Messages --------------- 02938_ 6Z-9GP(R) destroyed. 02941_ Dropped Assault Rifle. 02943_ Triggered Shrapnel Trap. 02943_ An expanding cloud of shrapnel blasts out in all directions. 02944_ Acquired 33 matter. 02946_ Acquired 12 matter. 02947_ Triggered Piercing Trap. 02947_ Spikes shoot up from the floor. 02947_ Critical hit (Impale). 02951_ Acquired Sub. Power Source. 02969_ Dropped Mining Laser. 03024_ Autogun destroyed. 03028_ Lgt. Treads destroyed. 03034_ Sub. Monowheel melted. 03034_ Disposable Heat Sink melted. 03034_ 7B-POI(R) destroyed. 03043_ Hrd. Medium Armor Plating destroyed. 03051_ Ion Engine destroyed. 03113_ Lgt. Treads destroyed. 03115_ Hvy. Assault Rifle destroyed. Map ----- +----------------------------------------------------+ | ???????????????# ##????????????????? | | ??????????????# #### ##?????????????????? | | ??????????? ????# ##??????????????????? | | ?????????? ????## ##??????????????????? | | ??????????? ?????# ##?????????????????? | | ????????????# ??????# ####??????????????? | | ?????????????????????## ##?????????????? | | ??????????????????????#^ ^ #?????????????? | | ?????????????????????## #?????????????? | | ?????????????????????#^ #?????????????? | | ?????????????????????####" [ "#?????????????? | | ????????????????????????##"! *"##?????????????? | | ?????????????????????????#" =="#??????????????? | | ???????????????????????### ! ""#??????????????? | | ??????????????????????## """ ###??????????????? | | ????????????????????### """"" ##?????????????? | | ???????????????????##""" """ #?????????????? | | ???????????????????# """ | ###?????????????? | | ???????????????????###"" ######???????????????? | | ?????????????????##??# #????????????????????? | | ?????????????????# ### #????????????????????? | | ?????????????????#" ##???????????????????? | | ?????????????????#" #???????????????????? | | ?????????????????##"""" ##??????????????????? | | ??????????????????### "& #??????????????????? | | ????????????????????# %& @ #??????????????????? | | ???????????????? """!R ""#??????????????????? | | ????????????????# ### ##??????????????????? | | ??????????????????? ### ##???????????????????? | | ????????????????? ???##?????????????????????? | | ????????????????# ????????????????????????????? | | ???????????????# ?????????????????????????????? | | ??????????????????????????????????????????????? | | ??????????????????????????????????????????????? | | ??????????????????????????????????????????????? | | ??????????????????????????????????????????????? | | ??????????????????????????????????????????????? | | ??????????????????????????????????????????????? | | ??????????????????????????????????????????????? | | ??????????????????????????????????????????????? | | ??????????????????????????????????????????????? | | ??????????????????????????????????????????????? | | ??????????????????????????????????????????????? | | ??????????????????????????????????????????????? | | ??????????????????????????????????????????????? | | ??????????????????????????????????????????????? | | ??????????????????????????????????????????????? | | ??????????????????????????????????????????????? | | ??????????????????????????????????????????????? | | ??????????????????????????????????????????????? | +----------------------------------------------------+ Best States ------------- Heat Dissipation 25 Energy Generation 10 Energy Capacity 250 Matter Stores 300 Matter Capacity 300 Sight Range 16 Terrain Scan Density 10 Armor Coverage 225 Evasion (%) 55 Recoil Reduction 2 Item Schematics ----------------- None Robot Schematics ------------------ None Fabricated ------------ Nothing Alien Tech Used ----------------- None Achievements -------------- None Challenges ------------ None Game ------ Seed ShadingRiotTrident Manual? 0 Play Time 00:37:11 Cumulative 15.5 hours Start 2024.08.31 @ 23:26:18 End 2024.09.01 @ 00:05:41 Sessions 1 Manual Loads 0 Difficulty Rogue Special Mode None Game No. 13 Rogue 13 Adventurer 0 Explorer 0 Win Type - Total 0 Types 0/0/0/0/0/0/0/0/0 Lore% 10 Gallery% 12 Achievement% 30 Wizard Run 0 Options --------- Layout 0 ASCII 0 Keyboard 0 Movement Mouse Keybinds 0 Fullscreen 1 Font 16/SmallcapsGlow Map View 37x27 Zoom Use 91% Tactical HUD 1 Map Filters NONE Filters NONE Steam 1 RUN: 31e62738-3d4b-4a0f-86ea-aedf3d619f90